[Event "Titled Tuesday Blitz January 03 Early 2023"]
[White "Forgacs, Attila Jr."]
[Black "Osiecki, Stanislaw"]
[WhiteFideId "773654"]
[BlackFideId "1102990"]
[WhiteElo "2264"]
[BlackElo "2055"]
[Result "1-0"]
[Round "10"]
[TimeControl "180+2"]
[Date "2023.01.03"]
[WhiteClock "0:01:06"]
[BlackClock "0:00:01"]

1. e4 {[%clk 0:02:59]}  e6 {[%clk 0:02:54]} 2. d4 {[%clk 0:02:58]}  d5 {[%clk 0:02:50]} 3. Nc3 {[%clk 0:02:59]}  Bb4 {[%clk 0:02:47]} 4. e5 {[%clk 0:02:59]}  c5 {[%clk 0:02:40]} 5. a3 {[%clk 0:03:00]}  Bxc3+ {[%clk 0:02:40]} 6. bxc3 {[%clk 0:03:01]}  Qc7 {[%clk 0:02:41]} 7. Qg4 {[%clk 0:03:01]}  f5 {[%clk 0:02:41]} 8. Qg3 {[%clk 0:02:58]}  cxd4 {[%clk 0:02:41]} 9. cxd4 {[%clk 0:02:51]}  Ne7 {[%clk 0:02:39]} 10. c3 {[%clk 0:02:47]}  O-O {[%clk 0:02:39]} 11. Ne2 {[%clk 0:02:46]}  b6 {[%clk 0:02:39]} 12. h4 {[%clk 0:02:43]}  Ba6 {[%clk 0:02:38]} 13. h5 {[%clk 0:02:41]}  Bxe2 {[%clk 0:02:35]} 14. Bxe2 {[%clk 0:02:40]}  Nbc6 {[%clk 0:02:34]} 15. h6 {[%clk 0:02:38]}  g6 {[%clk 0:02:32]} 16. Bg5 {[%clk 0:02:34]}  Na5 {[%clk 0:02:30]} 17. Bf6 {[%clk 0:02:32]}  Rac8 {[%clk 0:02:25]} 18. O-O {[%clk 0:02:23]}  Rf7 {[%clk 0:02:23]} 19. Rac1 {[%clk 0:02:20]}  Nc4 {[%clk 0:02:18]} 20. Bxc4 {[%clk 0:02:15]}  Qxc4 {[%clk 0:02:17]} 21. Qg5 {[%clk 0:02:12]}  Rc7 {[%clk 0:01:56]} 22. g4 {[%clk 0:02:08]}  Qd3 {[%clk 0:01:48]} 23. gxf5 {[%clk 0:02:06]}  Qxf5 {[%clk 0:01:45]} 24. Qxf5 {[%clk 0:02:06]}  Nxf5 {[%clk 0:01:45]} 25. Bg5 {[%clk 0:02:03]}  Rc4 {[%clk 0:01:38]} 26. Rfd1 {[%clk 0:01:57]}  Rfc7 {[%clk 0:01:38]} 27. Rd3 {[%clk 0:01:57]}  Ra4 {[%clk 0:01:37]} 28. Ra1 {[%clk 0:01:55]}  b5 {[%clk 0:01:32]} 29. Bd2 {[%clk 0:01:46]}  Rac4 {[%clk 0:01:23]} 30. Kf1 {[%clk 0:01:46]}  g5 {[%clk 0:01:06]} 31. Ke2 {[%clk 0:01:37]}  Nxh6 {[%clk 0:00:53]} 32. Rg1 {[%clk 0:01:33]}  Rg7 {[%clk 0:00:44]} 33. Rxg5 {[%clk 0:01:21]}  Rxg5 {[%clk 0:00:41]} 34. Bxg5 {[%clk 0:01:22]}  Nf7 {[%clk 0:00:40]} 35. Bc1 {[%clk 0:01:21]}  h5 {[%clk 0:00:27]} 36. Rh3 {[%clk 0:01:21]}  h4 {[%clk 0:00:20]} 37. Kd3 {[%clk 0:01:18]}  Kg7 {[%clk 0:00:10]} 38. f4 {[%clk 0:01:19]}  Kg6 {[%clk 0:00:09]} 39. Rxh4 {[%clk 0:01:19]}  Kf5 {[%clk 0:00:09]} 40. Rh7 {[%clk 0:01:17]}  Nd8 {[%clk 0:00:05]} 41. Rxa7 {[%clk 0:01:10]}  Ra4 {[%clk 0:00:03]} 42. Rd7 {[%clk 0:01:08]}  Nc6 {[%clk 0:00:02]} 43. Rf7+ {[%clk 0:01:07]}  Kg4 {[%clk 0:00:02]} 44. Rf6 {[%clk 0:01:07]}  Nd8 {[%clk 0:00:01]} 45. f5 {[%clk 0:01:05]}  exf5 {[%clk 0:00:01]} 46. e6 {[%clk 0:01:06]} 1-0


[Site "https://www.chess.com"]

[Event "Titled Tuesday Blitz January 03 Early 2023"]
[White "Klinova, Masha"]
[Black "Chernov, Mikhail"]
[WhiteFideId "2802015"]
[BlackFideId "24143170"]
[WhiteElo "2250"]
[BlackElo "2205"]
[Result "0-1"]
[Round "10"]
[TimeControl "180+2"]
[Date "2023.01.03"]
[WhiteClock "0:01:00"]
[BlackClock "0:00:06"]

1. e4 {[%clk 0:03:00]}  c5 {[%clk 0:02:59]} 2. Nf3 {[%clk 0:03:00]}  Nc6 {[%clk 0:03:00]} 3. Bb5 {[%clk 0:03:00]}  g6 {[%clk 0:03:00]} 4. Bxc6 {[%clk 0:02:59]}  bxc6 {[%clk 0:03:01]} 5. O-O {[%clk 0:02:58]}  Bg7 {[%clk 0:03:02]} 6. Re1 {[%clk 0:02:58]}  Nh6 {[%clk 0:03:02]} 7. c3 {[%clk 0:02:56]}  O-O {[%clk 0:03:02]} 8. h3 {[%clk 0:02:56]}  d6 {[%clk 0:03:02]} 9. d4 {[%clk 0:02:51]}  cxd4 {[%clk 0:03:02]} 10. cxd4 {[%clk 0:02:51]}  f6 {[%clk 0:03:03]} 11. Nc3 {[%clk 0:02:50]}  Nf7 {[%clk 0:03:04]} 12. Be3 {[%clk 0:02:44]}  Qa5 {[%clk 0:03:02]} 13. Qd2 {[%clk 0:02:44]}  Qh5 {[%clk 0:02:52]} 14. Qe2 {[%clk 0:02:39]}  g5 {[%clk 0:02:50]} 15. Nh2 {[%clk 0:02:35]}  Qg6 {[%clk 0:02:44]} 16. Rac1 {[%clk 0:02:33]}  f5 {[%clk 0:02:34]} 17. exf5 {[%clk 0:02:23]}  Bxf5 {[%clk 0:02:35]} 18. Nf3 {[%clk 0:02:19]}  Kh8 {[%clk 0:02:14]} 19. Qd2 {[%clk 0:02:06]}  Bf6 {[%clk 0:02:12]} 20. d5 {[%clk 0:02:03]}  c5 {[%clk 0:02:10]} 21. Nh2 {[%clk 0:01:59]}  h5 {[%clk 0:02:06]} 22. g4 {[%clk 0:01:51]}  Bd7 {[%clk 0:02:03]} 23. f3 {[%clk 0:01:48]}  Ne5 {[%clk 0:01:56]} 24. Kg2 {[%clk 0:01:46]}  Nd3 {[%clk 0:01:51]} 25. Ne4 {[%clk 0:01:43]}  Nxc1 {[%clk 0:01:38]} 26. Qxc1 {[%clk 0:01:41]}  h4 {[%clk 0:01:29]} 27. Bxg5 {[%clk 0:01:36]}  Bxg5 {[%clk 0:01:23]} 28. Nxg5 {[%clk 0:01:36]}  Rae8 {[%clk 0:01:06]} 29. Ne6 {[%clk 0:01:33]}  Rf6 {[%clk 0:00:54]} 30. f4 {[%clk 0:01:26]}  Bxe6 {[%clk 0:00:49]} 31. dxe6 {[%clk 0:01:25]}  Rxe6 {[%clk 0:00:43]} 32. f5 {[%clk 0:01:24]}  Rxe1 {[%clk 0:00:42]} 33. Qxe1 {[%clk 0:01:24]}  Qf6 {[%clk 0:00:39]} 34. Nf3 {[%clk 0:01:24]}  Qxb2+ {[%clk 0:00:28]} 35. Kh1 {[%clk 0:01:23]}  Qf6 {[%clk 0:00:29]} 36. Nxh4 {[%clk 0:01:22]}  c4 {[%clk 0:00:24]} 37. Ng6+ {[%clk 0:01:20]}  Kg7 {[%clk 0:00:24]} 38. Qe3 {[%clk 0:01:20]}  c3 {[%clk 0:00:20]} 39. Nf4 {[%clk 0:01:19]}  Rh8 {[%clk 0:00:13]} 40. Nd5 {[%clk 0:01:12]}  Qe5 {[%clk 0:00:08]} 41. Qg5+ {[%clk 0:01:11]}  Kf7 {[%clk 0:00:07]} 42. Qg6+ {[%clk 0:01:10]}  Kf8 {[%clk 0:00:08]} 43. Nc7 {[%clk 0:01:01]}  Rxh3+ {[%clk 0:00:06]} 44. Kg2 {[%clk 0:01:01]}  Qh2+ {[%clk 0:00:05]} 45. Kf1 {[%clk 0:01:01]}  Rf3+ {[%clk 0:00:05]} 46. Ke1 {[%clk 0:01:01]}  Qg1+ {[%clk 0:00:05]} 47. Ke2 {[%clk 0:01:00]}  Qg2+ {[%clk 0:00:05]} 48. Kd1 {[%clk 0:01:00]}  Rf1# {[%clk 0:00:06]} 0-1


[Site "https://www.chess.com"]

[Event "Titled Tuesday Blitz January 03 Early 2023"]
[White "Makhmudov, Shukhrat"]
[Black "Gholami Orimi, Mahdi"]
[WhiteFideId "14200775"]
[BlackFideId "12558486"]
[WhiteElo "2115"]
[BlackElo "2420"]
[Result "0-1"]
[Round "10"]
[TimeControl "180+2"]
[Date "2023.01.03"]
[WhiteClock "0:00:06"]
[BlackClock "0:00:25"]

1. e4 {[%clk 0:03:00]}  c5 {[%clk 0:02:46]} 2. Nf3 {[%clk 0:03:00]}  Nc6 {[%clk 0:02:44]} 3. d4 {[%clk 0:03:00]}  cxd4 {[%clk 0:02:44]} 4. Nxd4 {[%clk 0:03:01]}  Nf6 {[%clk 0:02:45]} 5. Nc3 {[%clk 0:03:00]}  d6 {[%clk 0:02:45]} 6. Be2 {[%clk 0:02:56]}  g6 {[%clk 0:02:38]} 7. Bg5 {[%clk 0:02:54]}  Bg7 {[%clk 0:02:39]} 8. Nxc6 {[%clk 0:02:30]}  bxc6 {[%clk 0:02:30]} 9. e5 {[%clk 0:02:31]}  dxe5 {[%clk 0:02:30]} 10. Qxd8+ {[%clk 0:02:30]}  Kxd8 {[%clk 0:02:31]} 11. Bf3 {[%clk 0:02:17]}  Bd7 {[%clk 0:02:11]} 12. O-O-O {[%clk 0:02:09]}  Kc7 {[%clk 0:02:11]} 13. Rhe1 {[%clk 0:02:05]}  h6 {[%clk 0:02:04]} 14. Bh4 {[%clk 0:01:48]}  Be6 {[%clk 0:02:01]} 15. Rxe5 {[%clk 0:01:42]}  Rhd8 {[%clk 0:01:59]} 16. Bg3 {[%clk 0:01:34]}  Rxd1+ {[%clk 0:01:56]} 17. Kxd1 {[%clk 0:01:27]}  Kd7 {[%clk 0:01:53]} 18. Ra5 {[%clk 0:01:21]}  Ne8 {[%clk 0:01:50]} 19. Nb5 {[%clk 0:01:19]}  a6 {[%clk 0:01:22]} 20. c3 {[%clk 0:01:14]}  Nd6 {[%clk 0:01:20]} 21. Nd4 {[%clk 0:01:09]}  Bxd4 {[%clk 0:01:20]} 22. cxd4 {[%clk 0:01:09]}  Nb5 {[%clk 0:01:20]} 23. Ra4 {[%clk 0:00:50]}  Bd5 {[%clk 0:01:19]} 24. Bxd5 {[%clk 0:00:40]}  cxd5 {[%clk 0:01:20]} 25. Rb4 {[%clk 0:00:36]}  Kc6 {[%clk 0:00:45]} 26. Kd2 {[%clk 0:00:30]}  a5 {[%clk 0:00:44]} 27. Ra4 {[%clk 0:00:26]}  Kb6 {[%clk 0:00:45]} 28. Kd3 {[%clk 0:00:23]}  Rc8 {[%clk 0:00:44]} 29. Bf4 {[%clk 0:00:23]}  g5 {[%clk 0:00:41]} 30. Bd2 {[%clk 0:00:23]}  Nd6 {[%clk 0:00:34]} 31. Rxa5 {[%clk 0:00:18]}  e6 {[%clk 0:00:35]} 32. Ra3 {[%clk 0:00:17]}  Nc4 {[%clk 0:00:33]} 33. Rb3+ {[%clk 0:00:17]}  Kc6 {[%clk 0:00:33]} 34. Bc3 {[%clk 0:00:17]}  Ra8 {[%clk 0:00:33]} 35. a3 {[%clk 0:00:16]}  g4 {[%clk 0:00:33]} 36. Rb4 {[%clk 0:00:15]}  h5 {[%clk 0:00:32]} 37. a4 {[%clk 0:00:15]}  h4 {[%clk 0:00:30]} 38. b3 {[%clk 0:00:16]}  Nd6 {[%clk 0:00:29]} 39. Bd2 {[%clk 0:00:13]}  h3 {[%clk 0:00:28]} 40. g3 {[%clk 0:00:12]}  Ne4 {[%clk 0:00:28]} 41. Be3 {[%clk 0:00:13]}  Rc8 {[%clk 0:00:28]} 42. Rb5 {[%clk 0:00:13]}  f6 {[%clk 0:00:27]} 43. Ra5 {[%clk 0:00:12]}  Kb6 {[%clk 0:00:27]} 44. Rb5+ {[%clk 0:00:13]}  Ka6 {[%clk 0:00:27]} 45. Rc5 {[%clk 0:00:11]}  Nxc5+ {[%clk 0:00:27]} 46. dxc5 {[%clk 0:00:12]}  e5 {[%clk 0:00:24]} 47. b4 {[%clk 0:00:12]}  Kb7 {[%clk 0:00:22]} 48. b5 {[%clk 0:00:11]}  Ra8 {[%clk 0:00:23]} 49. c6+ {[%clk 0:00:10]}  Kc7 {[%clk 0:00:23]} 50. Bc5 {[%clk 0:00:05]}  Rxa4 {[%clk 0:00:23]} 51. Kc3 {[%clk 0:00:05]}  Rc4+ {[%clk 0:00:24]} 52. Kb3 {[%clk 0:00:05]}  Rxc5 {[%clk 0:00:25]} 53. Kb4 {[%clk 0:00:06]}  Rc2 {[%clk 0:00:25]} 0-1


[Site "https://www.chess.com"]

[Event "Titled Tuesday Blitz January 03 Early 2023"]
[White "Barbot, Pierre"]
[Black "Mikhalsky, Vladimir"]
[WhiteFideId "663727"]
[BlackFideId "14144352"]
[WhiteElo "2458"]
[BlackElo "2219"]
[Result "0-1"]
[Round "10"]
[TimeControl "180+2"]
[Date "2023.01.03"]
[WhiteClock "0:00:02"]
[BlackClock "0:00:34"]

1. e4 {[%clk 0:03:00]}  c5 {[%clk 0:02:59]} 2. Nf3 {[%clk 0:03:00]}  Nc6 {[%clk 0:02:59]} 3. Bb5 {[%clk 0:02:58]}  g6 {[%clk 0:02:59]} 4. O-O {[%clk 0:02:51]}  Bg7 {[%clk 0:02:58]} 5. c3 {[%clk 0:02:51]}  a6 {[%clk 0:02:56]} 6. Ba4 {[%clk 0:02:39]}  b5 {[%clk 0:02:55]} 7. Bc2 {[%clk 0:02:39]}  Qb6 {[%clk 0:02:51]} 8. Re1 {[%clk 0:02:33]}  Bb7 {[%clk 0:02:50]} 9. d3 {[%clk 0:02:11]}  e5 {[%clk 0:02:48]} 10. Nbd2 {[%clk 0:02:09]}  Nge7 {[%clk 0:02:47]} 11. Nf1 {[%clk 0:02:10]}  O-O {[%clk 0:02:44]} 12. Be3 {[%clk 0:02:06]}  d5 {[%clk 0:02:41]} 13. exd5 {[%clk 0:01:32]}  Nxd5 {[%clk 0:02:40]} 14. Bb3 {[%clk 0:01:13]}  Nxe3 {[%clk 0:02:31]} 15. Nxe3 {[%clk 0:01:14]}  Rad8 {[%clk 0:02:29]} 16. Nd5 {[%clk 0:01:10]}  Qa7 {[%clk 0:02:28]} 17. Qe2 {[%clk 0:00:49]}  Rfe8 {[%clk 0:02:20]} 18. Ng5 {[%clk 0:00:32]}  Ba8 {[%clk 0:02:03]} 19. Ne4 {[%clk 0:00:26]}  Re6 {[%clk 0:01:44]} 20. Qf3 {[%clk 0:00:10]}  Na5 {[%clk 0:01:37]} 21. Ndf6+ {[%clk 0:00:05]}  Bxf6 {[%clk 0:01:37]} 22. Nxf6+ {[%clk 0:00:05]}  Kg7 {[%clk 0:01:37]} 23. Ne4 {[%clk 0:00:03]}  Nxb3 {[%clk 0:01:32]} 24. axb3 {[%clk 0:00:04]}  f5 {[%clk 0:01:30]} 25. Qh3 {[%clk 0:00:05]}  h6 {[%clk 0:01:18]} 26. Ng3 {[%clk 0:00:05]}  Qf7 {[%clk 0:01:10]} 27. f3 {[%clk 0:00:05]}  Rxd3 {[%clk 0:01:09]} 28. Re2 {[%clk 0:00:04]}  Qf6 {[%clk 0:01:02]} 29. Rae1 {[%clk 0:00:04]}  Bd5 {[%clk 0:00:52]} 30. Nf1 {[%clk 0:00:04]}  Bxb3 {[%clk 0:00:49]} 31. Nd2 {[%clk 0:00:03]}  Bd5 {[%clk 0:00:44]} 32. Nf1 {[%clk 0:00:04]}  Bc6 {[%clk 0:00:43]} 33. Ne3 {[%clk 0:00:04]}  Bd7 {[%clk 0:00:41]} 34. Nc2 {[%clk 0:00:04]}  f4 {[%clk 0:00:38]} 35. Qg4 {[%clk 0:00:03]}  Red6 {[%clk 0:00:37]} 36. Rxe5 {[%clk 0:00:01]}  Bxg4 {[%clk 0:00:36]} 37. Re7+ {[%clk 0:00:02]}  Kf8 {[%clk 0:00:34]} 38. Re8+ {[%clk 0:00:02]}  Kf7 {[%clk 0:00:34]} 0-1


[Site "https://www.chess.com"]

[Event "Titled Tuesday Blitz January 03 Early 2023"]
[White "Andreev, Konstantin"]
[Black "De Souza, Cristiano Gomes"]
[WhiteFideId "24239305"]
[BlackFideId "2151758"]
[WhiteElo "2195"]
[BlackElo "2018"]
[Result "0-1"]
[Round "10"]
[TimeControl "180+2"]
[Date "2023.01.03"]
[WhiteClock "0:01:28"]
[BlackClock "0:01:38"]

1. e4 {[%clk 0:03:00]}  c5 {[%clk 0:02:59]} 2. Nf3 {[%clk 0:03:01]}  d6 {[%clk 0:02:59]} 3. d4 {[%clk 0:03:00]}  cxd4 {[%clk 0:03:00]} 4. Nxd4 {[%clk 0:03:01]}  Nf6 {[%clk 0:03:01]} 5. Nc3 {[%clk 0:03:02]}  a6 {[%clk 0:03:00]} 6. h4 {[%clk 0:03:02]}  e6 {[%clk 0:02:59]} 7. g4 {[%clk 0:03:01]}  Nc6 {[%clk 0:02:58]} 8. g5 {[%clk 0:03:00]}  Nd7 {[%clk 0:02:57]} 9. Be3 {[%clk 0:03:01]}  Nxd4 {[%clk 0:02:57]} 10. Qxd4 {[%clk 0:03:00]}  Ne5 {[%clk 0:02:55]} 11. O-O-O {[%clk 0:02:57]}  Bd7 {[%clk 0:02:53]} 12. f4 {[%clk 0:02:56]}  Nc6 {[%clk 0:02:53]} 13. Qd2 {[%clk 0:02:56]}  Qa5 {[%clk 0:02:49]} 14. Kb1 {[%clk 0:02:55]}  Rc8 {[%clk 0:02:49]} 15. Be2 {[%clk 0:02:55]}  b5 {[%clk 0:02:49]} 16. Bd3 {[%clk 0:02:44]}  Nb4 {[%clk 0:02:46]} 17. Bd4 {[%clk 0:02:33]}  Nxd3 {[%clk 0:02:43]} 18. cxd3 {[%clk 0:02:31]}  b4 {[%clk 0:02:42]} 19. Ne2 {[%clk 0:02:30]}  Qb5 {[%clk 0:02:42]} 20. h5 {[%clk 0:02:25]}  h6 {[%clk 0:02:36]} 21. g6 {[%clk 0:02:14]}  f6 {[%clk 0:02:33]} 22. Be3 {[%clk 0:02:07]}  a5 {[%clk 0:02:32]} 23. Nd4 {[%clk 0:01:58]}  Qb7 {[%clk 0:02:32]} 24. e5 {[%clk 0:01:56]}  dxe5 {[%clk 0:02:25]} 25. fxe5 {[%clk 0:01:57]}  fxe5 {[%clk 0:02:25]} 26. Ne2 {[%clk 0:01:54]}  Be7 {[%clk 0:02:21]} 27. Rhf1 {[%clk 0:01:54]}  Bf6 {[%clk 0:02:21]} 28. Rxf6 {[%clk 0:01:50]}  gxf6 {[%clk 0:02:20]} 29. Bxh6 {[%clk 0:01:51]}  Qf3 {[%clk 0:02:03]} 30. Rg1 {[%clk 0:01:45]}  Ke7 {[%clk 0:02:01]} 31. g7 {[%clk 0:01:40]}  Rhg8 {[%clk 0:01:56]} 32. Ng3 {[%clk 0:01:40]}  Bb5 {[%clk 0:01:54]} 33. d4 {[%clk 0:01:39]}  Qd3+ {[%clk 0:01:48]} 34. Qxd3 {[%clk 0:01:39]}  Bxd3+ {[%clk 0:01:48]} 35. Ka1 {[%clk 0:01:40]}  exd4 {[%clk 0:01:48]} 36. Rd1 {[%clk 0:01:39]}  Bh7 {[%clk 0:01:41]} 37. Rxd4 {[%clk 0:01:39]}  Rgd8 {[%clk 0:01:41]} 38. Ne2 {[%clk 0:01:31]}  Rxd4 {[%clk 0:01:40]} 39. Nxd4 {[%clk 0:01:31]}  Kf7 {[%clk 0:01:41]} 40. b3 {[%clk 0:01:29]}  Rd8 {[%clk 0:01:38]} 41. Nc6 {[%clk 0:01:28]}  Rd1+ {[%clk 0:01:38]} 42. Kb2 {[%clk 0:01:28]}  Rb1# {[%clk 0:01:38]} 0-1


[Site "https://www.chess.com"]

[Event "Titled Tuesday Blitz January 03 Early 2023"]
[White "Szyszylo, Rafal"]
[Black "Ciuffoletti, Paolo"]
[WhiteFideId "1109626"]
[BlackFideId "807630"]
[WhiteElo "2091"]
[BlackElo "2106"]
[Result "1-0"]
[Round "10"]
[TimeControl "180+2"]
[Date "2023.01.03"]
[WhiteClock "0:00:12"]
[BlackClock "0:00:01"]

1. e4 {[%clk 0:03:00]}  c5 {[%clk 0:02:59]} 2. Nf3 {[%clk 0:03:00]}  Nc6 {[%clk 0:02:59]} 3. Bb5 {[%clk 0:02:59]}  e6 {[%clk 0:02:58]} 4. O-O {[%clk 0:02:56]}  Nge7 {[%clk 0:02:58]} 5. Re1 {[%clk 0:02:56]}  a6 {[%clk 0:02:58]} 6. Bf1 {[%clk 0:02:56]}  Ng6 {[%clk 0:02:56]} 7. c3 {[%clk 0:02:56]}  Be7 {[%clk 0:02:54]} 8. d4 {[%clk 0:02:57]}  cxd4 {[%clk 0:02:51]} 9. cxd4 {[%clk 0:02:56]}  d5 {[%clk 0:02:52]} 10. e5 {[%clk 0:02:56]}  O-O {[%clk 0:02:51]} 11. Nc3 {[%clk 0:02:52]}  Bd7 {[%clk 0:02:42]} 12. Bd3 {[%clk 0:02:40]}  b5 {[%clk 0:02:27]} 13. Ne2 {[%clk 0:02:25]}  Rc8 {[%clk 0:02:18]} 14. Ng3 {[%clk 0:02:07]}  Qb6 {[%clk 0:02:08]} 15. Be3 {[%clk 0:02:02]}  Na5 {[%clk 0:01:55]} 16. Nh5 {[%clk 0:01:51]}  Nc4 {[%clk 0:01:48]} 17. Bc1 {[%clk 0:01:50]}  Qd8 {[%clk 0:00:59]} 18. g3 {[%clk 0:01:48]}  f5 {[%clk 0:00:52]} 19. exf6 {[%clk 0:01:47]}  Bxf6 {[%clk 0:00:51]} 20. Nf4 {[%clk 0:00:53]}  Nxf4 {[%clk 0:00:42]} 21. Bxf4 {[%clk 0:00:54]}  Nxb2 {[%clk 0:00:38]} 22. Bxh7+ {[%clk 0:00:54]}  Kxh7 {[%clk 0:00:37]} 23. Qb1+ {[%clk 0:00:53]}  Kg8 {[%clk 0:00:33]} 24. Qxb2 {[%clk 0:00:54]}  Qe7 {[%clk 0:00:27]} 25. h4 {[%clk 0:00:51]}  Rc4 {[%clk 0:00:23]} 26. Rad1 {[%clk 0:00:49]}  Rfc8 {[%clk 0:00:23]} 27. Re2 {[%clk 0:00:46]}  Qf7 {[%clk 0:00:19]} 28. Kg2 {[%clk 0:00:42]}  Qg6 {[%clk 0:00:19]} 29. Rdd2 {[%clk 0:00:32]}  Qf5 {[%clk 0:00:14]} 30. Be5 {[%clk 0:00:27]}  Be8 {[%clk 0:00:12]} 31. Bxf6 {[%clk 0:00:27]}  gxf6 {[%clk 0:00:12]} 32. Re3 {[%clk 0:00:26]}  Rc2 {[%clk 0:00:10]} 33. Rxc2 {[%clk 0:00:24]}  Rxc2 {[%clk 0:00:10]} 34. Qb4 {[%clk 0:00:21]}  Kf7 {[%clk 0:00:07]} 35. Qd6 {[%clk 0:00:19]}  Rxa2 {[%clk 0:00:05]} 36. Qc7+ {[%clk 0:00:19]}  Kf8 {[%clk 0:00:04]} 37. Qd6+ {[%clk 0:00:15]}  Kf7 {[%clk 0:00:04]} 38. h5 {[%clk 0:00:14]}  Qxh5 {[%clk 0:00:01]} 39. Qxe6+ {[%clk 0:00:13]}  Kf8 {[%clk 0:00:02]} 40. Qe7+ {[%clk 0:00:12]}  Kg8 {[%clk 0:00:01]} 41. Qxe8+ {[%clk 0:00:12]}  Qxe8 {[%clk 0:00:01]} 42. Rxe8+ {[%clk 0:00:13]}  Kf7 {[%clk 0:00:01]} 43. Rd8 {[%clk 0:00:12]} 1-0


[Site "https://www.chess.com"]

[Event "Titled Tuesday Blitz January 03 Early 2023"]
[White "Clawitter, Craig"]
[Black "Sanchez, Robert"]
[WhiteFideId "2023105"]
[BlackFideId "2034360"]
[WhiteElo "2050"]
[BlackElo "1966"]
[Result "0-1"]
[Round "10"]
[TimeControl "180+2"]
[Date "2023.01.03"]
[WhiteClock "0:00:01"]
[BlackClock "0:00:12"]

1. e4 {[%clk 0:03:00]}  d5 {[%clk 0:02:58]} 2. exd5 {[%clk 0:03:00]}  Qxd5 {[%clk 0:02:58]} 3. Nc3 {[%clk 0:03:00]}  Qe6+ {[%clk 0:02:59]} 4. Be2 {[%clk 0:02:59]}  Qg6 {[%clk 0:02:59]} 5. Nf3 {[%clk 0:03:00]}  Qxg2 {[%clk 0:02:58]} 6. Rg1 {[%clk 0:03:00]}  Qh3 {[%clk 0:02:58]} 7. d4 {[%clk 0:02:57]}  c6 {[%clk 0:02:59]} 8. Bc4 {[%clk 0:02:52]}  e6 {[%clk 0:02:44]} 9. Bf4 {[%clk 0:02:34]}  h6 {[%clk 0:02:41]} 10. Qe2 {[%clk 0:02:26]}  Nf6 {[%clk 0:02:39]} 11. O-O-O {[%clk 0:02:19]}  b5 {[%clk 0:02:30]} 12. Bb3 {[%clk 0:01:58]}  a5 {[%clk 0:02:29]} 13. a4 {[%clk 0:01:52]}  b4 {[%clk 0:02:28]} 14. Ne4 {[%clk 0:01:51]}  Be7 {[%clk 0:02:07]} 15. Rxg7 {[%clk 0:01:37]}  Nh5 {[%clk 0:02:06]} 16. Rxf7 {[%clk 0:01:00]}  Kxf7 {[%clk 0:01:56]} 17. Ne5+ {[%clk 0:00:51]}  Ke8 {[%clk 0:01:46]} 18. Bd2 {[%clk 0:00:33]}  Qf5 {[%clk 0:01:35]} 19. Rg1 {[%clk 0:00:24]}  Ba6 {[%clk 0:01:26]} 20. Qe3 {[%clk 0:00:14]}  Nf6 {[%clk 0:00:50]} 21. Nc5 {[%clk 0:00:07]}  Nd5 {[%clk 0:00:33]} 22. Qg3 {[%clk 0:00:04]}  Bg5 {[%clk 0:00:22]} 23. h4 {[%clk 0:00:01]}  Bxd2+ {[%clk 0:00:21]} 24. Kxd2 {[%clk 0:00:02]}  Qf4+ {[%clk 0:00:20]} 25. Qxf4 {[%clk 0:00:03]}  Nxf4 {[%clk 0:00:21]} 26. Rg7 {[%clk 0:00:02]}  Nd5 {[%clk 0:00:16]} 27. Ng6 {[%clk 0:00:01]}  Rf8 {[%clk 0:00:12]} 0-1


[Site "https://www.chess.com"]

[Event "Titled Tuesday Blitz January 03 Early 2023"]
[White "Slovineanu"]
[Black "Winkels, Marcel"]
[BlackFideId "1003887"]
[WhiteElo "2294"]
[BlackElo "1960"]
[Result "0-1"]
[Round "10"]
[TimeControl "180+2"]
[Date "2023.01.03"]
[WhiteClock "0:00:02"]
[BlackClock "0:00:03"]

1. e4 {[%clk 0:03:00]}  c5 {[%clk 0:02:59]} 2. Nf3 {[%clk 0:03:00]}  e6 {[%clk 0:02:59]} 3. d4 {[%clk 0:03:00]}  cxd4 {[%clk 0:02:59]} 4. Nxd4 {[%clk 0:03:01]}  Nc6 {[%clk 0:02:59]} 5. Nc3 {[%clk 0:03:01]}  a6 {[%clk 0:02:59]} 6. Be3 {[%clk 0:03:00]}  Bb4 {[%clk 0:02:57]} 7. Nxc6 {[%clk 0:02:59]}  bxc6 {[%clk 0:02:56]} 8. Bd2 {[%clk 0:02:59]}  Nf6 {[%clk 0:02:53]} 9. Bd3 {[%clk 0:02:58]}  Qc7 {[%clk 0:02:46]} 10. a3 {[%clk 0:02:54]}  Bd6 {[%clk 0:02:42]} 11. Qe2 {[%clk 0:02:51]}  Be5 {[%clk 0:02:37]} 12. g3 {[%clk 0:02:47]}  d5 {[%clk 0:02:32]} 13. f4 {[%clk 0:02:43]}  Bd4 {[%clk 0:02:06]} 14. e5 {[%clk 0:02:25]}  Nd7 {[%clk 0:02:04]} 15. Na4 {[%clk 0:02:08]}  Rb8 {[%clk 0:01:55]} 16. c3 {[%clk 0:02:07]}  Ba7 {[%clk 0:01:53]} 17. b4 {[%clk 0:01:34]}  a5 {[%clk 0:01:47]} 18. Be3 {[%clk 0:01:28]}  O-O {[%clk 0:01:42]} 19. Bxa7 {[%clk 0:01:25]}  Qxa7 {[%clk 0:01:40]} 20. Qf2 {[%clk 0:01:26]}  Qxf2+ {[%clk 0:01:30]} 21. Kxf2 {[%clk 0:01:26]}  Ra8 {[%clk 0:01:29]} 22. Ke3 {[%clk 0:01:18]}  Ba6 {[%clk 0:01:25]} 23. Nb2 {[%clk 0:01:01]}  Bxd3 {[%clk 0:01:20]} 24. Kxd3 {[%clk 0:00:58]}  f6 {[%clk 0:01:16]} 25. exf6 {[%clk 0:00:57]}  gxf6 {[%clk 0:01:12]} 26. Rae1 {[%clk 0:00:56]}  e5 {[%clk 0:01:11]} 27. Kc2 {[%clk 0:00:50]}  axb4 {[%clk 0:01:06]} 28. axb4 {[%clk 0:00:47]}  e4 {[%clk 0:00:56]} 29. Ra1 {[%clk 0:00:45]}  f5 {[%clk 0:00:55]} 30. Kd2 {[%clk 0:00:40]}  Nf6 {[%clk 0:00:53]} 31. Ke3 {[%clk 0:00:33]}  Ng4+ {[%clk 0:00:52]} 32. Kd4 {[%clk 0:00:33]}  Rfe8 {[%clk 0:00:50]} 33. h3 {[%clk 0:00:28]}  Nf2 {[%clk 0:00:44]} 34. Rh2 {[%clk 0:00:26]}  e3 {[%clk 0:00:44]} 35. Rxa8 {[%clk 0:00:25]}  Rxa8 {[%clk 0:00:40]} 36. Kxe3 {[%clk 0:00:23]}  Ne4 {[%clk 0:00:39]} 37. Kd3 {[%clk 0:00:16]}  Kf7 {[%clk 0:00:35]} 38. g4 {[%clk 0:00:16]}  Ra3 {[%clk 0:00:32]} 39. Rc2 {[%clk 0:00:15]}  Kf6 {[%clk 0:00:26]} 40. Kd4 {[%clk 0:00:11]}  fxg4 {[%clk 0:00:25]} 41. hxg4 {[%clk 0:00:11]}  Ra1 {[%clk 0:00:24]} 42. g5+ {[%clk 0:00:06]}  Kf5 {[%clk 0:00:23]} 43. Rd2 {[%clk 0:00:03]}  Kxf4 {[%clk 0:00:21]} 44. Rd3 {[%clk 0:00:03]}  Kxg5 {[%clk 0:00:20]} 45. c4 {[%clk 0:00:02]}  dxc4 {[%clk 0:00:18]} 46. Nxc4 {[%clk 0:00:03]}  Nf6 {[%clk 0:00:17]} 47. Kc5 {[%clk 0:00:03]}  Rc1 {[%clk 0:00:15]} 48. Rd4 {[%clk 0:00:03]}  Ng4 {[%clk 0:00:13]} 49. Kxc6 {[%clk 0:00:03]}  Ne5+ {[%clk 0:00:12]} 50. Kd5 {[%clk 0:00:04]}  Nf7 {[%clk 0:00:11]} 51. Kc5 {[%clk 0:00:03]}  h5 {[%clk 0:00:10]} 52. Rd5+ {[%clk 0:00:03]}  Kg4 {[%clk 0:00:10]} 53. b5 {[%clk 0:00:04]}  h4 {[%clk 0:00:09]} 54. Kb4 {[%clk 0:00:04]}  Rb1+ {[%clk 0:00:08]} 55. Kc5 {[%clk 0:00:04]}  Rc1 {[%clk 0:00:08]} 56. Kb4 {[%clk 0:00:04]}  Ra1 {[%clk 0:00:07]} 57. Kc5 {[%clk 0:00:04]}  Rb1 {[%clk 0:00:07]} 58. b6 {[%clk 0:00:03]}  Ng5 {[%clk 0:00:04]} 59. Ne5+ {[%clk 0:00:02]}  Kg3 {[%clk 0:00:03]} 60. Rd4 {[%clk 0:00:02]}  Ne6+ {[%clk 0:00:01]} 61. Kd5 {[%clk 0:00:02]}  Nxd4 {[%clk 0:00:02]} 62. Kxd4 {[%clk 0:00:02]}  Rxb6 {[%clk 0:00:03]} 0-1


[Site "https://www.chess.com"]